bitfinex/quotes_SOLUSD_20250728
["timestamp","ask_amount","ask_price","bid_price","bid_amount"]
[1753687846157,36.82,192.61,192.6,0.72]
[1753687846158,42.63813949,192.61,192.6,0.72]
[1753687847028,47.82997791,192.61,192.58,0.28432314]
[1753687847258,5.81813949,192.59,192.58,0.28432314]
[1753687847443,5.81813949,192.59,192.58,1.00432314]
[1753687847644,42.01183842,192.61,192.58,0.28432314]
[1753687847969,11.01051707,192.59,192.58,0.28432314]
[1753687848353,11.01051707,192.59,192.57,16.78468397]
[1753687848590,5.81813949,192.58,192.57,16.78468397]
[1753687849978,5.19291686,192.57,192.55,16.78468397]
[1753687850179,36.82,192.56,192.55,16.92684554]
[1753687850383,0.51886058,192.6,192.56,0.14216157]
[1753687850384,36.82,192.57,192.56,0.14216157]
[1753687850750,36.82,192.57,192.54,16.78468397]
[1753687850751,42.63813949,192.57,192.54,16.78468397]
[1753687850973,5.81813949,192.55,192.54,16.78468397]
[1753687851273,5.81813949,192.55,192.53,0.2]
[1753687851476,43.35700007,192.54,192.53,0.2]
[1753687852010,48.55072604,192.54,192.53,0.2]
[1753687852672,49.27072604,192.54,192.53,0.2]
[1753687852872,48.55072604,192.54,192.53,0.2]
[1753687853461,42.21372597,192.54,192.53,0.2]
[1753687853657,48.03186546,192.54,192.53,0.2]
[1753687855081,48.75186546,192.54,192.53,0.2]
[1753687855251,5.81813949,192.49,192.47,16.78468397]
[1753687855450,37.04,192.48,192.47,16.78468397]
[1753687855647,42.87813949,192.48,192.47,17.46468397]
[1753687856283,5.81813949,192.48,192.47,17.46468397]
[1753687857069,37.06,192.5,192.48,0.28432314]
[1753687857070,42.87813949,192.5,192.48,0.28432314]
[1753687857290,42.87813949,192.5,192.48,0.96432314]
[1753687857497,42.87813949,192.5,192.49,17.46468397]
[1753687857863,5.81813949,192.51,192.5,16.78468397]
[1753687858063,42.85813949,192.52,192.5,17.46468397]
[1753687858282,5.19399574,192.53,192.5,17.46468397]
[1753687858583,5.19399574,192.53,192.48,0.28432314]
[1753687858584,5.19399574,192.53,192.51,0.68]
[1753687858801,5.19399574,192.53,192.52,0.68]
[1753687859282,11.01213523,192.53,192.5,0.68]
[1753687859589,5.81813949,192.51,192.5,0.68]
[1753687860293,5.81813949,192.52,192.5,0.68]
[1753687860489,5.81813949,192.51,192.5,0.68]
[1753687860785,5.81813949,192.52,192.5,0.68]
[1753687860974,5.81813949,192.52,192.47,22.8871466]
[1753687861290,5.81813949,192.52,192.48,0.68]
[1753687861468,37.04,192.54,192.48,0.68]
[1753687861668,5.81813949,192.52,192.48,0.68]
[1753687861884,5.81813949,192.51,192.48,0.68]
[1753687862287,5.81813949,192.52,192.48,0.68]
[1753687862958,11.01241624,192.52,192.48,0.68]
[1753687863387,5.19427675,192.52,192.48,0.68]
[1753687863687,5.81813949,192.57,192.52,0.28432314]
[1753687863887,48.0707867,192.58,192.54,16.78468397]
[1753687864071,42.25264721,192.58,192.55,0.68]
[1753687864268,0.03,192.59,192.57,0.28432314]
[1753687864887,0.03,192.59,192.58,17.46468397]
[1753687865071,5.84813949,192.59,192.58,16.78468397]
[1753687866871,0.03,192.59,192.58,16.78468397]
[1753687868706,0.03,192.59,192.58,17.74900711]
[1753687869000,0.03,192.59,192.58,24.08641132]
[1753687870889,0.03,192.59,192.58,23.34167183]
[1753687871093,0.03,192.59,192.58,17.06900711]
[1753687872110,0.03,192.59,192.58,17.74900711]
[1753687872262,0.03,192.59,192.58,17.06900711]
[1753687872576,0.03,192.59,192.58,117.05979381]
[1753687872983,0.03,192.59,192.58,111.8671466]
[1753687873203,0.03,192.59,192.58,117.57905853]
[1753687873406,0.03,192.59,192.58,117.05979381]
[1753687873569,0.03,192.61,192.6,43.06900711]
[1753687873764,0.03,192.61,192.6,86.42635739]
[1753687874008,0.03,192.61,192.6,87.10635739]
[1753687874209,0.03,192.61,192.6,92.29846538]
[1753687874407,0.03,192.61,192.6,180.59846538]
[1753687874615,0.03,192.61,192.6,201.44779408]
[1753687874816,0.03,192.61,192.6,153.4175466]
[1753687874973,0.03,192.61,192.6,195.62965459]
[1753687875297,0.03,192.61,192.6,190.4375466]
[1753687876017,0.03,192.61,192.6,195.62965459]
[1753687876570,0.03,192.61,192.6,190.4375466]
[1753687876910,0.03,192.61,192.6,195.62965459]
[1753687879382,0.03,192.61,192.6,153.13322346]
[1753687879594,0.03,192.61,192.6,190.11322346]
[1753687879800,0.03,192.61,192.6,190.25538503]
[1753687880577,0.03,192.61,192.6,190.3975466]
[1753687881380,0.03,192.61,192.6,42.78468397]
[1753687881718,6.56813949,192.61,192.6,16.78468397]
[1753687881885,6.56813949,192.61,192.54,5.81813949]
[1753687882082,5.81813949,192.56,192.5,5.81813949]
[1753687882305,0.72,192.55,192.5,42.75813949]
[1753687882610,11.73186546,192.54,192.48,5.87813949]
[1753687882811,6.53813949,192.53,192.48,5.87813949]
[1753687883311,0.72,192.52,192.49,16.78468397]
[1753687883486,5.81813949,192.53,192.49,16.78468397]
[1753687883691,6.53813949,192.53,192.5,0.28432314]
[1753687884088,0.72,192.52,192.49,16.78468397]
[1753687884407,0.72,192.52,192.48,16.84468397]
[1753687884408,6.53813949,192.52,192.48,16.84468397]
[1753687884581,5.19480519,192.5,192.48,16.84468397]
[1753687885514,5.19480519,192.5,192.48,0.06]
[1753687885515,5.81813949,192.49,192.48,0.06]
[1753687885715,0.72,192.49,192.48,0.06]
[1753687886524,11.01294468,192.5,192.48,0.06]
[1753687886841,5.19480519,192.5,192.48,0.06]
[1753687887243,11.73294468,192.5,192.48,0.06]
[1753687887413,6.53813949,192.49,192.48,0.06]
[1753687887621,7.05700007,192.49,192.48,0.06]
[1753687888731,12.25207513,192.49,192.48,0.06]
[1753687888941,11.73321455,192.49,192.48,0.06]
[1753687889842,12.25207513,192.49,192.48,0.06]
[1753687890056,7.05700007,192.49,192.48,0.06]
[1753687890746,12.25207513,192.49,192.48,0.06]
[1753687890956,12.25207513,192.49,192.45,0.06]
[1753687891131,5.81813949,192.46,192.45,0.06]
[1753687891646,43.55813949,192.46,192.45,0.06]
[1753687892744,6.53813949,192.46,192.45,0.06]
[1753687893054,49.27288492,192.46,192.45,0.06]
[1753687894049,37.0,192.46,192.45,0.06]
[1753687894226,37.0,192.46,192.45,17.56468397]
[1753687895027,42.19588485,192.46,192.45,16.84468397]
[1753687895448,48.73402434,192.46,192.45,0.06]
[1753687897348,61.72373648,192.46,192.4,0.06]
[1753687897518,5.81813949,192.41,192.4,0.06]
[1753687897724,42.83813949,192.41,192.4,0.06]
[1753687899045,37.0,192.41,192.4,17.84900711]
[1753687899729,46.34698787,192.41,192.4,17.12900711]
[1753687899924,42.19723507,192.41,192.4,17.12900711]
[1753687900245,51.54422294,192.41,192.4,17.12900711]
[1753687900758,37.0,192.41,192.4,17.84900711]
[1753687900960,42.19723507,192.41,192.4,17.12900711]
[1753687901149,51.54422294,192.41,192.4,17.12900711]
[1753687902456,51.54422294,192.41,192.4,16.84468397]
[1753687903858,51.54422294,192.41,192.4,0.06]
[1753687905944,42.19723507,192.41,192.4,0.06]
[1753687906143,37.0,192.41,192.4,0.78]
[1753687906667,9.34698787,192.42,192.4,0.78]
[1753687906836,37.0,192.41,192.4,0.78]
[1753687907464,9.34698787,192.44,192.4,0.78]
[1753687907671,14.57291028,192.46,192.41,26.41599498]
[1753687907850,0.03,192.46,192.45,16.78468397]
[1753687908056,0.03,192.46,192.45,27.13599498]
[1753687908359,37.03,192.46,192.45,17.78900711]
[1753687908566,42.22588485,192.46,192.43,0.84216157]
[1753687908871,42.22588485,192.46,192.43,10.18914944]
[1753687909454,42.22588485,192.46,192.43,0.98432314]
[1753687909678,42.22588485,192.46,192.44,0.7]
[1753687910375,42.22588485,192.46,192.43,0.28432314]
[1753687910853,5.22588485,192.46,192.43,9.63131101]
[1753687911054,36.98,192.45,192.44,17.48468397]
[1753687911262,36.98,192.45,192.44,17.76900711]
[1753687912152,36.98,192.45,192.44,17.06900711]
[1753687912656,42.17615484,192.45,192.44,16.78468397]
[1753687912851,51.52314271,192.45,192.4,1.04432314]
[1753687913052,9.34698787,192.44,192.41,16.78468397]
[1753687913262,36.96,192.43,192.41,16.78468397]
[1753687913758,46.30698787,192.43,192.4,0.34432314]
[1753687913956,14.54395284,192.42,192.4,0.06]
[1753687914280,36.96,192.41,192.4,0.06]
[1753687914580,47.02698787,192.41,192.4,0.06]
[1753687916051,52.22422294,192.41,192.4,0.06]
[1753687917178,5.19703856,192.42,192.4,0.76]
[1753687917392,36.92,192.41,192.4,0.76]
[1753687917961,0.51886058,192.44,192.4,0.76]
[1753687918174,36.92,192.43,192.41,0.7]
[1753687918375,36.92,192.42,192.41,17.48468397]
[1753687919295,0.03,192.46,192.42,16.78468397]
[1753687919498,36.92,192.45,192.43,9.34698787]
[1753687919802,36.92,192.45,192.44,0.7]
[1753687919975,36.92,192.45,192.41,10.33131101]
[1753687920294,36.92,192.45,192.43,0.28432314]
[1753687920504,42.11624059,192.45,192.42,9.63131101]
[1753687920800,42.11624059,192.45,192.41,16.78468397]
[1753687921003,0.51886058,192.44,192.41,16.78468397]
[1753687921156,36.92,192.43,192.41,16.78468397]
[1753687921361,36.92,192.44,192.42,10.33131101]
[1753687921560,36.92,192.44,192.43,17.76900711]
[1753687922383,0.03,192.45,192.44,16.78468397]
[1753687922583,36.93,192.45,192.44,16.78468397]
[1753687923075,42.12615484,192.45,192.44,16.78468397]
[1753687923872,36.93,192.45,192.44,16.78468397]
[1753687924187,36.93,192.45,192.43,17.06900711]
[1753687924393,36.93,192.45,192.43,17.76900711]
[1753687924697,42.12617088,192.45,192.43,17.76900711]
[1753687925072,36.93,192.45,192.44,6.53763216]
[1753687925270,0.03,192.45,192.44,23.60663927]
[1753687925476,0.03,192.45,192.44,50.12628175]
[1753687925675,0.03,192.45,192.44,49.60663927]
[1753687925880,0.03,192.45,192.44,43.76900711]
[1753687926090,0.03,192.45,192.44,49.60663927]
[1753687928372,0.03,192.45,192.44,54.80306412]
[1753687928689,0.03,192.45,192.44,60.04263927]
[1753687931771,0.03,192.45,192.44,154.0587066]
[1753687931973,0.03,192.45,192.44,153.53906412]
[1753687932194,0.03,192.45,192.44,190.41906412]
[1753687933182,0.03,192.45,192.44,164.41906412]
[1753687935593,0.03,192.46,192.45,17.06900711]
[1753687935806,0.03,192.49,192.48,48.90663927]
[1753687935978,0.03,192.49,192.48,174.08663927]
[1753687936181,0.03,192.49,192.48,174.78663927]
[1753687936673,0.03,192.49,192.48,185.98277143]
[1753687937079,0.03,192.54,192.53,16.78468397]
[1753687937391,0.03,192.54,192.53,28.62003458]
[1753687937589,0.03,192.54,192.53,29.32003458]
[1753687943103,0.03,192.54,192.53,23.42603884]
[1753687943408,0.03,192.54,192.53,59.76663927]
[1753687943710,0.03,192.54,192.53,60.45663927]
[1753687944192,0.03,192.54,192.53,60.97603884]
[1753687944898,0.03,192.54,192.53,60.28603884]
[1753687945092,0.03,192.54,192.53,65.48003458]
[1753687945298,0.03,192.54,192.53,66.17003458]
[1753687945806,0.03,192.54,192.53,60.97603884]
[1753687946013,0.03,192.54,192.53,59.76663927]
[1753687946327,14.50136889,192.6,192.59,42.78468397]
[1753687946500,0.03,192.61,192.6,17.06900711]
[1753687946702,0.03,192.61,192.6,22.90663927]
[1753687946900,0.03,192.61,192.6,23.59663927]
[1753687947308,0.03,192.61,192.6,28.78874726]
[1753687947625,0.03,192.61,192.6,23.59663927]
[1753687947833,0.03,192.61,192.6,28.78874726]
[1753687948525,0.03,192.61,192.6,34.62637942]
[1753687949944,0.03,192.61,192.6,35.14559021]
[1753687950314,0.03,192.61,192.6,29.30795805]
[1753687951614,0.03,192.61,192.6,28.61795805]
[1753687951810,0.03,192.61,192.6,85.74663927]
[1753687952147,0.03,192.61,192.6,48.62231613]
[1753687952148,0.75,192.61,192.6,48.62231613]
[1753687952316,0.03,192.61,192.6,54.78874726]
[1753687953212,0.03,192.61,192.6,48.90663927]
[1753687953414,0.03,192.61,192.6,48.7644777]
[1753687953622,0.75,192.61,192.6,48.7644777]
[1753687953822,0.75,192.61,192.6,48.62231613]
[1753687954337,0.75,192.61,192.6,22.7644777]
[1753687954633,0.75,192.61,192.6,16.92684554]
[1753687954826,0.03,192.61,192.6,22.90663927]
[1753687955445,0.75,192.61,192.59,5.83763216]
[1753687955743,0.72,192.6,192.59,48.90663927]
[1753687955928,0.72,192.6,192.59,22.90663927]
[1753687956546,0.03,192.61,192.59,22.90663927]
[1753687956840,0.72,192.6,192.59,22.90663927]
[1753687958039,5.91210799,192.6,192.59,16.78468397]
[1753687959021,0.72,192.6,192.59,16.78468397]
[1753687959729,5.91210799,192.6,192.59,16.78468397]
[1753687961851,5.91210799,192.6,192.56,16.78468397]
[1753687962045,1.23886058,192.59,192.56,22.62231613]
[1753687962832,0.72,192.58,192.56,16.78468397]
[1753687963059,0.72,192.57,192.55,16.78468397]
[1753687963625,0.72,192.56,192.54,16.78468397]
[1753687963834,5.71231682,192.55,192.54,16.78468397]
[1753687964049,6.43231682,192.55,192.54,16.78468397]
[1753687964358,6.43231682,192.55,192.53,16.78468397]
[1753687965051,5.19345624,192.55,192.53,16.78468397]
[1753687967056,5.91345624,192.55,192.53,16.78468397]
[1753687967352,7.07649274,192.54,192.5,16.78468397]
[1753687967557,6.35649274,192.54,192.49,16.78468397]
[1753687967858,6.35649274,192.54,192.47,26.69]
[1753687967859,6.55763216,192.53,192.47,26.69]
[1753687968035,0.51886058,192.52,192.49,16.78468397]
[1753687968432,5.19453534,192.51,192.49,16.78468397]
[1753687968958,5.84453534,192.51,192.48,16.78468397]
[1753687970343,0.65,192.5,192.46,0.28432314]
[1753687970547,0.65,192.5,192.46,16.78468397]
[1753687970548,1.16886058,192.5,192.46,16.78468397]
[1753687971043,1.16886058,192.5,192.46,17.49468397]
[1753687971044,0.51886058,192.5,192.46,17.49468397]
[1753687971540,6.48763216,192.49,192.45,16.78468397]
[1753687971743,7.00649274,192.48,192.44,16.84468397]
[1753687972444,5.1956149,192.47,192.44,16.84468397]
[1753687972628,0.51886058,192.46,192.44,16.84468397]
[1753687972834,5.71447548,192.47,192.45,0.06]
[1753687974152,6.36447548,192.47,192.45,0.06]
[1753687974664,5.71447548,192.47,192.45,0.06]
[1753687975656,5.1956149,192.47,192.45,0.06]
[1753687976559,12.98633837,192.51,192.47,16.78468397]
[1753687976560,6.35649274,192.5,192.47,16.78468397]
[1753687976759,7.00649274,192.5,192.47,16.78468397]
[1753687976961,5.83763216,192.48,192.45,0.06]
[1753687977171,0.65,192.49,192.45,0.06]
[1753687977172,6.35649274,192.47,192.45,0.06]
[1753687977458,5.83763216,192.46,192.45,0.06]
[1753687977765,6.48763216,192.46,192.45,0.06]
[1753687978563,11.68351701,192.46,192.45,0.06]
[1753687979069,48.52351701,192.46,192.45,0.06]
[1753687979946,53.72951701,192.46,192.45,0.06]
[1753687980159,53.72951701,192.46,192.44,0.06]
[1753687980360,7.00649274,192.45,192.44,0.06]
[1753687980569,12.20264758,192.45,192.44,0.06]
[1753687980871,49.04264758,192.45,192.44,0.06]
[1753687981241,49.04264758,192.45,192.44,1e-08]
[1753687984079,42.57501542,192.45,192.44,1e-08]
[1753687984296,49.06264758,192.45,192.44,1e-08]
[1753687984945,75.06264758,192.45,192.44,1e-08]
[1753687985252,26.0,192.42,192.4,0.06]
[1753687985445,43.23649274,192.41,192.37,0.06]
[1753687985645,5.83763216,192.38,192.37,0.06]
[1753687986085,6.35649274,192.38,192.37,0.06]
[1753687986261,7.00649274,192.38,192.37,0.06]
[1753687986573,12.20453827,192.38,192.37,0.06]
[1753687987260,49.08453827,192.38,192.37,0.06]
[1753687989550,49.08453827,192.38,192.36,0.06]
[1753687989750,6.48763216,192.37,192.36,0.06]
[1753687990269,11.6859479,192.37,192.36,0.06]
[1753687990674,11.0359479,192.37,192.36,0.06]
[1753687990991,47.9159479,192.37,192.36,0.77]
[1753687991480,47.9159479,192.37,192.36,0.06]
[1753687991677,48.5659479,192.37,192.36,0.06]
[1753687992066,61.56173726,192.37,192.33,0.1]
[1753687992268,5.83763216,192.34,192.33,0.1]
[1753687992583,43.27649274,192.34,192.33,0.1]
[1753687993399,6.35649274,192.34,192.33,0.1]
[1753687993565,43.27649274,192.34,192.33,0.1]
[1753687994065,6.35649274,192.34,192.33,0.81]
[1753687994289,43.27649274,192.34,192.33,0.81]
[1753687994466,48.47561928,192.34,192.33,0.81]
[1753687995469,48.47561928,192.34,192.33,0.1]
[1753687997588,49.12561928,192.34,192.33,0.1]
[1753687997791,49.12561928,192.34,192.33,1e-08]
[1753687998481,49.12561928,192.34,192.32,1e-08]
[1753687998693,6.51763216,192.33,192.32,1e-08]
[1753687998994,11.71702902,192.33,192.32,1e-08]
[1753687999486,11.03702902,192.33,192.32,1e-08]
[1753687999878,5.19939686,192.33,192.32,1e-08]
[1753688000069,47.93702902,192.33,192.32,0.70000001]
[1753688000468,36.9,192.33,192.32,0.70000001]
[1753688000708,36.92,192.33,192.32,0.70000001]
[1753688000990,47.95702902,192.33,192.32,0.70000001]
[1753688001304,47.95702902,192.33,192.32,1e-08]
[1753688001598,48.63702902,192.33,192.32,1e-08]
[1753688001805,74.63702902,192.33,192.32,1e-08]
[1753688002668,73.95702902,192.33,192.32,1e-08]
[1753688002870,37.03702902,192.33,192.32,1e-08]
[1753688003291,48.01702902,192.33,192.32,0.70000001]
[1753688003810,48.01702902,192.33,192.32,1e-08]
[1753688004797,48.01702902,192.33,192.32,0.70000001]
[1753688004798,36.98,192.33,192.32,0.70000001]
[1753688004969,0.51886058,192.33,192.32,0.70000001]
[1753688005174,37.49886058,192.33,192.32,0.70000001]
[1753688005790,48.5358896,192.33,192.32,0.70000001]
[1753688006690,15.31464114,192.33,192.32,0.70000001]
[1753688006868,52.27464114,192.33,192.32,1e-08]
[1753688007072,46.43700898,192.33,192.32,0.70000001]
[1753688007495,52.27464114,192.33,192.32,1e-08]
[1753688008095,52.95464114,192.33,192.32,1e-08]
[1753688008400,9.47700898,192.33,192.32,1e-08]
[1753688008694,4.27761212,192.33,192.32,0.70000001]
[1753688008888,41.25761212,192.33,192.32,0.70000001]
[1753688009086,46.45700898,192.33,192.32,0.70000001]
[1753688009276,52.29464114,192.33,192.32,0.70000001]
[1753688009671,52.29464114,192.33,192.3,0.7]
[1753688009872,3.75875154,192.32,192.3,0.7]
[1753688010073,47.09524428,192.31,192.26,16.78468397]
[1753688010275,3.75875154,192.3,192.28,0.7]
[1753688010475,41.25761212,192.29,192.28,0.7]
[1753688011015,46.46644334,192.29,192.28,0.7]
[1753688011481,52.3040755,192.29,192.28,0.7]
[1753688011679,52.3040755,192.29,192.26,0.7]
[1753688011911,3.76710432,192.28,192.25,16.88468397]
[1753688012092,11.0381106,192.29,192.27,0.7]
[1753688012293,40.73009758,192.28,192.27,0.7]
[1753688013082,51.76847864,192.28,192.25,17.58468397]
[1753688013317,9.60772974,192.27,192.26,0.7]
[1753688013514,9.60772974,192.27,192.25,0.1]
[1753688013808,40.75009758,192.26,192.25,0.8]
[1753688014104,41.26895816,192.26,192.25,0.1]
[1753688014296,37.49886058,192.26,192.25,0.1]
[1753688015010,37.49886058,192.26,192.25,0.8]
[1753688015406,0.51886058,192.26,192.25,0.8]
[1753688015614,36.96,192.26,192.25,23.42231613]
[1753688015912,36.96,192.27,192.26,16.78468397]
[1753688016115,36.96,192.27,192.26,23.32231613]
[1753688016325,36.96,192.27,192.26,17.48468397]
[1753688016608,36.96,192.27,192.26,0.7]
[1753688016816,42.79763216,192.27,192.25,0.1]
[1753688017111,0.51886058,192.26,192.25,0.1]
[1753688017494,5.72015049,192.26,192.25,0.1]
[1753688018087,11.55778265,192.26,192.25,0.1]
[1753688018717,0.51886058,192.26,192.25,17.58468397]
[1753688018903,42.16106161,192.27,192.25,17.58468397]
[1753688019209,42.67992219,192.27,192.26,0.7]
[1753688019515,5.19999298,192.31,192.27,16.78468397]
[1753688019720,0.51886058,192.31,192.29,22.62231613]
[1753688019913,0.54886058,192.34,192.31,16.78468397]
[1753688020218,36.96,192.33,192.32,17.48468397]
[1753688020427,0.03,192.34,192.33,17.06900711]
[1753688020719,0.03,192.34,192.33,23.60663927]
[1753688021304,0.03,192.34,192.33,28.66373927]
[1753688022323,0.03,192.34,192.33,33.86313613]
[1753688022525,0.03,192.34,192.33,45.01957581]
[1753688022891,0.03,192.34,192.33,48.52425275]
[1753688024797,0.03,192.38,192.37,16.78468397]
[1753688025000,0.03,192.38,192.37,26.41131621]
[1753688025197,0.03,192.38,192.37,27.11131621]
[1753688026517,0.03,192.38,192.37,42.82051621]
[1753688026920,0.03,192.38,192.37,48.01883195]
[1753688028707,0.03,192.38,192.37,84.91883195]
[1753688028911,0.00790653,192.38,192.37,84.91883195]
[1753688029425,0.00790653,192.38,192.37,48.01883195]
[1753688030513,0.00790653,192.38,192.37,85.09883195]
[1753688030918,0.00790653,192.38,192.37,48.01883195]
[1753688031105,0.00790653,192.38,192.37,85.09883195]
[1753688031432,0.00790653,192.38,192.37,48.01883195]
[1753688031635,0.00790653,192.38,192.37,47.73450881]
[1753688031821,0.00790653,192.38,192.37,47.03450881]
[1753688032135,0.00790653,192.38,192.37,73.69450881]
[1753688032738,0.00790653,192.38,192.37,42.78468397]
[1753688033035,0.00790653,192.38,192.35,5.19860041]
[1753688033036,10.01021563,192.38,192.33,16.78468397]
[1753688033236,0.66790653,192.38,192.33,31.32632282]
[1753688033438,0.00790653,192.38,192.34,10.0023091]
[1753688033748,0.00790653,192.38,192.35,16.78468397]
[1753688034041,0.00790653,192.38,192.35,26.78699307]
[1753688035128,0.00790653,192.38,192.35,31.98575307]
[1753688035917,0.00790653,192.38,192.37,26.12699307]
[1753688036119,0.00790653,192.38,192.37,26.41131621]
[1753688036435,0.00790653,192.38,192.37,27.07131621]
[1753688036731,0.03,192.46,192.43,16.78468397]
[1753688036924,0.03,192.46,192.45,9.3423091]
[1753688037918,0.03,192.46,192.44,9.3423091]
[1753688040446,0.03,192.46,192.44,15.19872098]
[1753688040749,0.69,192.46,192.4,31.19726547]
[1753688041045,9.3423091,192.43,192.4,26.0]
[1753688041212,10.0023091,192.43,192.38,16.78468397]
[1753688041610,9.3423091,192.4,192.34,112.4133091]
[1753688041816,9.3423091,192.38,192.33,0.72]
[1753688042108,1.17886058,192.39,192.33,0.72]
[1753688042109,9.3423091,192.39,192.35,26.0]
[1753688042304,10.0023091,192.39,192.35,26.0]
[1753688042510,0.51886058,192.38,192.35,26.0]
[1753688042745,9.86116968,192.38,192.35,26.0]
[1753688043136,9.3423091,192.4,192.36,0.66]
[1753688043512,0.51886058,192.42,192.37,0.66]
[1753688043716,5.85676038,192.43,192.37,10.0023091]
[1753688043717,6.37561858,192.43,192.37,10.0023091]
[1753688044029,9.3423091,192.42,192.37,0.66]
[1753688044244,9.3423091,192.41,192.37,0.66]
[1753688044449,9.3423091,192.4,192.36,16.78468397]
[1753688044755,37.18,192.39,192.36,16.78468397]
[1753688044925,9.3423091,192.37,192.33,0.34432314]
[1753688045112,9.3423091,192.36,192.33,0.06]
[1753688045617,9.3423091,192.36,192.34,26.0]
[1753688045812,37.18,192.39,192.34,26.0]
[1753688046021,37.69886058,192.39,192.35,0.66]
[1753688046215,37.18,192.39,192.34,35.3423091]
[1753688046448,52.89915473,192.39,192.34,26.0]
[1753688046618,10.0023091,192.38,192.34,26.0]
[1753688047340,51.72029415,192.39,192.34,26.66]
[1753688048140,37.16,192.38,192.37,26.12699307]
[1753688048342,37.16,192.38,192.37,26.78699307]
[1753688048753,37.16,192.38,192.37,31.98530881]
[1753688049857,37.16,192.38,192.37,58.26963195]
[1753688051160,0.03,192.46,192.41,42.78468397]
[1753688051338,37.17,192.46,192.45,26.12699307]
[1753688051744,37.17,192.46,192.43,9.3423091]
[1753688051950,37.83,192.46,192.43,16.78468397]
[1753688052479,0.66,192.45,192.42,16.78468397]
[1753688052844,37.17,192.46,192.42,31.98394662]
[1753688053039,37.17,192.46,192.43,10.0023091]
[1753688054037,37.17,192.46,192.43,9.3423091]
[1753688054366,37.83,192.46,192.42,16.78468397]
[1753688054534,37.83,192.46,192.42,26.12699307]
[1753688054951,37.17,192.46,192.42,26.12699307]
[1753688055331,37.17,192.46,192.43,10.0023091]
[1753688055536,37.17,192.46,192.43,9.3423091]
[1753688056040,37.17,192.46,192.42,26.12699307]
[1753688056244,37.83,192.46,192.42,26.12699307]
[1753688056566,10.0023091,192.45,192.42,26.0]
[1753688056738,0.54886058,192.46,192.42,26.0]
[1753688056940,37.1,192.45,192.43,10.0023091]
[1753688057441,37.1,192.45,192.42,26.0]
[1753688057637,37.1,192.45,192.43,9.3423091]
[1753688058066,37.76,192.45,192.42,26.0]
[1753688058245,37.1,192.45,192.42,26.0]
[1753688059164,47.68116968,192.45,192.4,97.6423091]
[1753688059457,37.1,192.45,192.4,15.25977201]
[1753688059668,37.61886058,192.45,192.4,15.25977201]
[1753688059850,37.1,192.45,192.4,14.53977201]
[1753688060051,37.1,192.45,192.41,10.0623091]
[1753688061347,37.1,192.45,192.41,0.72]
[1753688061543,37.1,192.45,192.4,14.53977201]
[1753688061866,37.1,192.45,192.41,0.72]
[1753688062059,42.81503885,192.45,192.4,14.53977201]
[1753688062263,43.01617827,192.45,192.4,15.25977201]
[1753688062769,43.01617827,192.45,192.4,5.91746291]
[1753688062949,43.01617827,192.45,192.4,11.75602454]
[1753688063662,43.01617827,192.45,192.4,6.55856163]
[1753688064042,0.72,192.44,192.4,16.78468397]
[1753688064246,0.72,192.43,192.39,31.83856163]
[1753688065549,11.75531639,192.43,192.39,26.0]
[1753688065748,1.23886058,192.42,192.38,0.06]
[1753688065940,0.03,192.46,192.4,22.6232456]
[1753688066279,37.0,192.45,192.42,5.83856163]
[1753688066480,37.0,192.45,192.42,6.55856163]
[1753688066970,1.23886058,192.44,192.39,88.3]
[1753688067281,5.83856163,192.41,192.4,26.0]
[1753688067456,37.0,192.41,192.4,26.0]
[1753688067657,37.0,192.41,192.38,0.06]
[1753688068376,37.0,192.41,192.38,0.78]
[1753688068546,37.0,192.41,192.4,22.6232456]
[1753688068869,37.0,192.41,192.4,23.3432456]
[1753688069372,37.0,192.41,192.4,54.54075079]
[1753688069581,36.98,192.41,192.4,54.54075079]
[1753688070284,36.98,192.41,192.4,43.78900711]